[Event "Titled Tuesday Blitz October 31 Late 2023"]
[White "Deeper44"]
[Black "Tokhirjonova, Gulrukhbegim"]
[BlackFideId "14203626"]
[WhiteElo "2537"]
[BlackElo "2684"]
[Result "1-0"]
[Round "8"]
[TimeControl "180+1"]
[Date "2023.10.31"]
[WhiteClock "0:00:04"]
[BlackClock "0:00:04"]
[Board "45"]

1. d4 {[%clk 0:02:59]}  Nf6 {[%clk 0:02:58]} 2. c4 {[%clk 0:02:57]}  e6 {[%clk 0:02:48]} 3. g3 {[%clk 0:02:57]}  c5 {[%clk 0:02:47]} 4. d5 {[%clk 0:02:57]}  exd5 {[%clk 0:02:47]} 5. cxd5 {[%clk 0:02:58]}  Bd6 {[%clk 0:02:47]} 6. Bg2 {[%clk 0:02:56]}  O-O {[%clk 0:02:47]} 7. Nf3 {[%clk 0:02:56]}  b5 {[%clk 0:02:47]} 8. O-O {[%clk 0:02:56]}  b4 {[%clk 0:02:46]} 9. a3 {[%clk 0:02:45]}  a5 {[%clk 0:02:46]} 10. axb4 {[%clk 0:02:44]}  cxb4 {[%clk 0:02:46]} 11. b3 {[%clk 0:02:40]}  Ba6 {[%clk 0:02:46]} 12. Bb2 {[%clk 0:02:38]}  Re8 {[%clk 0:02:47]} 13. Re1 {[%clk 0:02:37]}  Bc5 {[%clk 0:02:37]} 14. Nbd2 {[%clk 0:02:18]}  d6 {[%clk 0:02:35]} 15. Nd4 {[%clk 0:02:11]}  Qb6 {[%clk 0:02:27]} 16. e3 {[%clk 0:02:04]}  Nbd7 {[%clk 0:02:26]} 17. Nc6 {[%clk 0:01:48]}  Bb5 {[%clk 0:02:14]} 18. h3 {[%clk 0:01:30]}  Ne5 {[%clk 0:01:52]} 19. Nxe5 {[%clk 0:01:17]}  dxe5 {[%clk 0:01:52]} 20. Qc2 {[%clk 0:01:14]}  Rac8 {[%clk 0:01:49]} 21. Qf5 {[%clk 0:00:58]}  Rcd8 {[%clk 0:01:34]} 22. Nc4 {[%clk 0:00:41]}  Bxc4 {[%clk 0:01:27]} 23. bxc4 {[%clk 0:00:42]}  Nd7 {[%clk 0:01:18]} 24. Be4 {[%clk 0:00:28]}  g6 {[%clk 0:01:18]} 25. Qf3 {[%clk 0:00:27]}  Qc7 {[%clk 0:01:11]} 26. Bc2 {[%clk 0:00:25]}  Bb6 {[%clk 0:01:08]} 27. Ba4 {[%clk 0:00:24]}  Nc5 {[%clk 0:00:56]} 28. Bxe8 {[%clk 0:00:23]}  Rxe8 {[%clk 0:00:57]} 29. Qf6 {[%clk 0:00:16]}  Nd3 {[%clk 0:00:52]} 30. Reb1 {[%clk 0:00:15]}  Qa7 {[%clk 0:00:41]} 31. Qc6 {[%clk 0:00:12]}  Rd8 {[%clk 0:00:34]} 32. Bc1 {[%clk 0:00:10]}  Nc5 {[%clk 0:00:21]} 33. Rxb4 {[%clk 0:00:09]}  Bc7 {[%clk 0:00:13]} 34. Rb5 {[%clk 0:00:08]}  Bd6 {[%clk 0:00:12]} 35. Rab1 {[%clk 0:00:07]}  a4 {[%clk 0:00:10]} 36. Ba3 {[%clk 0:00:08]}  Ne4 {[%clk 0:00:08]} 37. Rb7 {[%clk 0:00:08]}  Qa5 {[%clk 0:00:05]} 38. Bxd6 {[%clk 0:00:08]}  Rxd6 {[%clk 0:00:06]} 39. Qc8+ {[%clk 0:00:06]}  Kg7 {[%clk 0:00:06]} 40. Qc7 {[%clk 0:00:05]}  Qd2 {[%clk 0:00:05]} 41. Qxf7+ {[%clk 0:00:05]}  Kh6 {[%clk 0:00:06]} 42. Qxh7+ {[%clk 0:00:05]}  Kg5 {[%clk 0:00:06]} 43. Qh4+ {[%clk 0:00:05]}  Kf5 {[%clk 0:00:07]} 44. Rf7+ {[%clk 0:00:04]}  Nf6 {[%clk 0:00:04]} 45. Qg4# {[%clk 0:00:04]} 1-0


[Site "https://www.chess.com"]

[Event "Titled Tuesday Blitz October 31 Late 2023"]
[White "Janaszak, Dawid"]
[Black "Sturt, Raven"]
[WhiteFideId "1119206"]
[BlackFideId "2007304"]
[WhiteElo "2674"]
[BlackElo "2538"]
[Result "0-1"]
[Round "8"]
[TimeControl "180+1"]
[Date "2023.10.31"]
[WhiteClock "0:00:18"]
[BlackClock "0:00:39"]
[Board "46"]

1. e4 {[%clk 0:03:00]}  e5 {[%clk 0:02:59]} 2. Nf3 {[%clk 0:02:59]}  Nc6 {[%clk 0:02:59]} 3. d4 {[%clk 0:02:58]}  exd4 {[%clk 0:02:58]} 4. Nxd4 {[%clk 0:02:59]}  Nf6 {[%clk 0:02:55]} 5. Nxc6 {[%clk 0:02:59]}  bxc6 {[%clk 0:02:55]} 6. e5 {[%clk 0:02:59]}  Qe7 {[%clk 0:02:55]} 7. Qe2 {[%clk 0:03:00]}  Nd5 {[%clk 0:02:54]} 8. c4 {[%clk 0:03:00]}  Ba6 {[%clk 0:02:55]} 9. h4 {[%clk 0:03:00]}  f6 {[%clk 0:02:46]} 10. Rh3 {[%clk 0:02:58]}  fxe5 {[%clk 0:02:37]} 11. Ra3 {[%clk 0:02:55]}  Nb4 {[%clk 0:02:36]} 12. Bg5 {[%clk 0:02:44]}  Qe6 {[%clk 0:02:33]} 13. Re3 {[%clk 0:02:23]}  d6 {[%clk 0:02:09]} 14. a3 {[%clk 0:02:23]}  Bxc4 {[%clk 0:02:09]} 15. Qh5+ {[%clk 0:01:38]}  g6 {[%clk 0:02:01]} 16. Qf3 {[%clk 0:01:38]}  Nc2+ {[%clk 0:01:52]} 17. Kd2 {[%clk 0:01:37]}  Bd5 {[%clk 0:01:51]} 18. Qf6 {[%clk 0:01:32]}  Nxe3 {[%clk 0:01:40]} 19. Kxe3 {[%clk 0:01:18]}  Rg8 {[%clk 0:01:29]} 20. Nc3 {[%clk 0:01:16]}  Qxf6 {[%clk 0:01:18]} 21. Bxf6 {[%clk 0:01:16]}  Be7 {[%clk 0:01:18]} 22. Bxe7 {[%clk 0:01:14]}  Kxe7 {[%clk 0:01:17]} 23. Ba6 {[%clk 0:01:13]}  Rab8 {[%clk 0:01:16]} 24. b4 {[%clk 0:01:13]}  Ke6 {[%clk 0:01:15]} 25. f3 {[%clk 0:01:12]}  Rgf8 {[%clk 0:01:15]} 26. Rc1 {[%clk 0:01:09]}  Rf7 {[%clk 0:01:09]} 27. b5 {[%clk 0:01:04]}  c5 {[%clk 0:01:06]} 28. Nxd5 {[%clk 0:00:59]}  Kxd5 {[%clk 0:01:06]} 29. b6 {[%clk 0:01:00]}  Kc6 {[%clk 0:01:06]} 30. Bc4 {[%clk 0:00:48]}  d5 {[%clk 0:01:00]} 31. bxa7 {[%clk 0:00:46]}  Ra8 {[%clk 0:01:00]} 32. Bd3 {[%clk 0:00:32]}  c4 {[%clk 0:01:00]} 33. Rxc4+ {[%clk 0:00:30]}  dxc4 {[%clk 0:00:59]} 34. Be4+ {[%clk 0:00:30]}  Kb6 {[%clk 0:00:57]} 35. Bxa8 {[%clk 0:00:30]}  c6 {[%clk 0:00:52]} 36. Bxc6 {[%clk 0:00:29]}  Rxa7 {[%clk 0:00:51]} 37. Bd5 {[%clk 0:00:23]}  Kc5 {[%clk 0:00:51]} 38. Bg8 {[%clk 0:00:22]}  Rxa3+ {[%clk 0:00:49]} 39. Kd2 {[%clk 0:00:23]}  Kd4 {[%clk 0:00:47]} 40. Bxh7 {[%clk 0:00:20]}  Ra2+ {[%clk 0:00:47]} 41. Ke1 {[%clk 0:00:20]}  Rxg2 {[%clk 0:00:47]} 42. Kf1 {[%clk 0:00:18]}  c3 {[%clk 0:00:41]} 43. Kxg2 {[%clk 0:00:17]}  c2 {[%clk 0:00:42]} 44. Bxg6 {[%clk 0:00:18]}  c1=Q {[%clk 0:00:39]} 45. h5 {[%clk 0:00:18]} 0-1


[Site "https://www.chess.com"]

[Event "Titled Tuesday Blitz October 31 Late 2023"]
[White "Al-Tarboush, Ward"]
[Black "Toncheva, Nadya"]
[WhiteFideId "7601450"]
[BlackFideId "2924056"]
[WhiteElo "2659"]
[BlackElo "2527"]
[Result "0-1"]
[Round "8"]
[TimeControl "180+1"]
[Date "2023.10.31"]
[WhiteClock "0:00:31"]
[BlackClock "0:00:09"]
[Board "48"]

1. e4 {[%clk 0:03:00]}  c5 {[%clk 0:03:00]} 2. Nf3 {[%clk 0:03:01]}  Nc6 {[%clk 0:03:01]} 3. d4 {[%clk 0:03:01]}  cxd4 {[%clk 0:03:01]} 4. Nxd4 {[%clk 0:03:02]}  g6 {[%clk 0:03:02]} 5. c4 {[%clk 0:03:01]}  Bg7 {[%clk 0:03:02]} 6. Be3 {[%clk 0:03:01]}  Nf6 {[%clk 0:03:03]} 7. Nc3 {[%clk 0:03:02]}  O-O {[%clk 0:03:03]} 8. f3 {[%clk 0:02:57]}  d6 {[%clk 0:03:04]} 9. Be2 {[%clk 0:02:57]}  Bd7 {[%clk 0:03:03]} 10. O-O {[%clk 0:02:57]}  Nxd4 {[%clk 0:03:04]} 11. Bxd4 {[%clk 0:02:57]}  a5 {[%clk 0:03:04]} 12. b3 {[%clk 0:02:56]}  Bc6 {[%clk 0:03:05]} 13. Qd2 {[%clk 0:02:55]}  Nd7 {[%clk 0:03:04]} 14. Rfd1 {[%clk 0:02:54]}  Nc5 {[%clk 0:03:00]} 15. Rac1 {[%clk 0:02:49]}  Ne6 {[%clk 0:02:55]} 16. Be3 {[%clk 0:02:46]}  Nc5 {[%clk 0:02:37]} 17. Nd5 {[%clk 0:02:42]}  Bxd5 {[%clk 0:02:35]} 18. cxd5 {[%clk 0:02:43]}  b6 {[%clk 0:02:32]} 19. Bb5 {[%clk 0:02:43]}  Rc8 {[%clk 0:02:28]} 20. Bc6 {[%clk 0:02:43]}  Rc7 {[%clk 0:02:26]} 21. Qc2 {[%clk 0:02:15]}  Qb8 {[%clk 0:01:58]} 22. a3 {[%clk 0:02:12]}  Nd7 {[%clk 0:01:51]} 23. b4 {[%clk 0:02:09]}  axb4 {[%clk 0:01:44]} 24. axb4 {[%clk 0:02:10]}  Ne5 {[%clk 0:01:44]} 25. b5 {[%clk 0:02:10]}  Nd7 {[%clk 0:01:42]} 26. Ra1 {[%clk 0:02:03]}  Bxa1 {[%clk 0:01:33]} 27. Rxa1 {[%clk 0:02:04]}  f6 {[%clk 0:01:11]} 28. Qb2 {[%clk 0:02:00]}  Ra7 {[%clk 0:01:06]} 29. Ra6 {[%clk 0:01:58]}  Nc5 {[%clk 0:01:02]} 30. Bxc5 {[%clk 0:01:51]}  bxc5 {[%clk 0:01:01]} 31. Rxa7 {[%clk 0:01:49]}  Qxa7 {[%clk 0:01:02]} 32. b6 {[%clk 0:01:50]}  Qa5 {[%clk 0:00:55]} 33. h3 {[%clk 0:01:50]}  Rb8 {[%clk 0:00:48]} 34. b7 {[%clk 0:01:50]}  Qe1+ {[%clk 0:00:44]} 35. Kh2 {[%clk 0:01:50]}  Qb4 {[%clk 0:00:38]} 36. Qe2 {[%clk 0:01:27]}  Rxb7 {[%clk 0:00:33]} 37. Bxb7 {[%clk 0:01:28]}  Qxb7 {[%clk 0:00:33]} 38. f4 {[%clk 0:01:28]}  Qb4 {[%clk 0:00:32]} 39. Kg3 {[%clk 0:01:26]}  Qc3+ {[%clk 0:00:31]} 40. Kf2 {[%clk 0:01:25]}  Qd4+ {[%clk 0:00:31]} 41. Kf3 {[%clk 0:01:25]}  c4 {[%clk 0:00:31]} 42. Qe3 {[%clk 0:01:22]}  Qb2 {[%clk 0:00:27]} 43. e5 {[%clk 0:01:17]}  fxe5 {[%clk 0:00:25]} 44. f5 {[%clk 0:01:16]}  Qb3 {[%clk 0:00:22]} 45. fxg6 {[%clk 0:01:15]}  Qxe3+ {[%clk 0:00:20]} 46. Kxe3 {[%clk 0:01:15]}  hxg6 {[%clk 0:00:20]} 47. h4 {[%clk 0:01:13]}  Kg7 {[%clk 0:00:20]} 48. g4 {[%clk 0:01:13]}  Kf6 {[%clk 0:00:20]} 49. Kd2 {[%clk 0:00:58]}  e4 {[%clk 0:00:17]} 50. Ke3 {[%clk 0:00:50]}  c3 {[%clk 0:00:17]} 51. Ke2 {[%clk 0:00:48]}  Ke5 {[%clk 0:00:12]} 52. Ke3 {[%clk 0:00:31]}  Kxd5 {[%clk 0:00:09]} 53. h5 {[%clk 0:00:32]}  gxh5 {[%clk 0:00:09]} 54. gxh5 {[%clk 0:00:33]}  Ke5 {[%clk 0:00:09]} 55. h6 {[%clk 0:00:31]}  Kf6 {[%clk 0:00:09]} 0-1


[Site "https://www.chess.com"]

[Event "Titled Tuesday Blitz October 31 Late 2023"]
[White "reevecanada"]
[Black "Mystery2007"]
[WhiteElo "2637"]
[BlackElo "2488"]
[Result "1-0"]
[Round "8"]
[TimeControl "180+1"]
[Date "2023.10.31"]
[WhiteClock "0:01:58"]
[BlackClock "0:00:13"]
[Board "52"]

1. e4 {[%clk 0:03:00]}  c5 {[%clk 0:03:00]} 2. Nf3 {[%clk 0:02:59]}  b6 {[%clk 0:02:59]} 3. Bc4 {[%clk 0:02:57]}  Bb7 {[%clk 0:02:57]} 4. d4 {[%clk 0:02:56]}  cxd4 {[%clk 0:02:57]} 5. Qxd4 {[%clk 0:02:55]}  e6 {[%clk 0:02:55]} 6. Nc3 {[%clk 0:02:55]}  Bc5 {[%clk 0:02:50]} 7. Qxg7 {[%clk 0:02:53]}  Qf6 {[%clk 0:02:50]} 8. Qxf6 {[%clk 0:02:54]}  Nxf6 {[%clk 0:02:51]} 9. e5 {[%clk 0:02:51]}  Ne4 {[%clk 0:02:46]} 10. Nxe4 {[%clk 0:02:50]}  Bxe4 {[%clk 0:02:47]} 11. Bd3 {[%clk 0:02:50]}  Bxd3 {[%clk 0:02:35]} 12. cxd3 {[%clk 0:02:51]}  Nc6 {[%clk 0:02:36]} 13. Be3 {[%clk 0:02:50]}  Bb4+ {[%clk 0:02:31]} 14. Ke2 {[%clk 0:02:49]}  Rg8 {[%clk 0:02:32]} 15. g3 {[%clk 0:02:48]}  Rc8 {[%clk 0:02:18]} 16. Rhc1 {[%clk 0:02:47]}  Kd8 {[%clk 0:02:12]} 17. a3 {[%clk 0:02:45]}  Be7 {[%clk 0:02:11]} 18. b4 {[%clk 0:02:45]}  f6 {[%clk 0:02:04]} 19. d4 {[%clk 0:02:44]}  Nb8 {[%clk 0:01:51]} 20. h4 {[%clk 0:02:42]}  Na6 {[%clk 0:01:48]} 21. Nd2 {[%clk 0:02:39]}  Nc7 {[%clk 0:01:45]} 22. Ne4 {[%clk 0:02:36]}  f5 {[%clk 0:01:42]} 23. Nd6 {[%clk 0:02:27]}  Rb8 {[%clk 0:01:31]} 24. Bg5 {[%clk 0:02:25]}  Bxg5 {[%clk 0:01:27]} 25. hxg5 {[%clk 0:02:24]}  Nd5 {[%clk 0:01:23]} 26. Rh1 {[%clk 0:02:22]}  Rg7 {[%clk 0:01:20]} 27. f4 {[%clk 0:02:20]}  b5 {[%clk 0:01:12]} 28. Rac1 {[%clk 0:02:17]}  a6 {[%clk 0:01:02]} 29. Rh6 {[%clk 0:02:14]}  Ke7 {[%clk 0:01:00]} 30. Kf3 {[%clk 0:02:13]}  Rbg8 {[%clk 0:00:55]} 31. Rch1 {[%clk 0:02:11]}  Nc3 {[%clk 0:00:47]} 32. Rxh7 {[%clk 0:02:08]}  Rxh7 {[%clk 0:00:36]} 33. Rxh7+ {[%clk 0:02:09]}  Kd8 {[%clk 0:00:37]} 34. g4 {[%clk 0:02:05]}  fxg4+ {[%clk 0:00:32]} 35. Kxg4 {[%clk 0:02:06]}  Ne2 {[%clk 0:00:32]} 36. d5 {[%clk 0:02:01]}  Rf8 {[%clk 0:00:25]} 37. f5 {[%clk 0:01:57]}  exf5+ {[%clk 0:00:20]} 38. Nxf5 {[%clk 0:01:57]}  Nc3 {[%clk 0:00:18]} 39. e6 {[%clk 0:01:56]}  dxe6 {[%clk 0:00:17]} 40. dxe6 {[%clk 0:01:57]}  Rg8 {[%clk 0:00:15]} 41. Rd7+ {[%clk 0:01:57]}  Ke8 {[%clk 0:00:14]} 42. Nd6+ {[%clk 0:01:57]}  Kf8 {[%clk 0:00:13]} 43. Rf7# {[%clk 0:01:58]} 1-0


[Site "https://www.chess.com"]

[Event "Titled Tuesday Blitz October 31 Late 2023"]
[White "Krishnan, Varun"]
[Black "Polaczek, Richard"]
[WhiteFideId "5054508"]
[BlackFideId "200026"]
[WhiteElo "2607"]
[BlackElo "2441"]
[Result "1-0"]
[Round "8"]
[TimeControl "180+1"]
[Date "2023.10.31"]
[WhiteClock "0:00:20"]
[BlackClock "0:00:00"]
[Board "54"]

1. g3 {[%clk 0:02:57]}  d5 {[%clk 0:02:55]} 2. Bg2 {[%clk 0:02:56]}  c6 {[%clk 0:02:55]} 3. Nf3 {[%clk 0:02:52]}  Bg4 {[%clk 0:02:53]} 4. O-O {[%clk 0:02:52]}  Nd7 {[%clk 0:02:52]} 5. d4 {[%clk 0:02:47]}  e6 {[%clk 0:02:48]} 6. b3 {[%clk 0:02:45]}  Ngf6 {[%clk 0:02:42]} 7. Bb2 {[%clk 0:02:40]}  Bd6 {[%clk 0:02:39]} 8. Nbd2 {[%clk 0:02:37]}  O-O {[%clk 0:02:36]} 9. Re1 {[%clk 0:02:37]}  a5 {[%clk 0:02:32]} 10. a4 {[%clk 0:02:33]}  h6 {[%clk 0:02:23]} 11. e4 {[%clk 0:02:28]}  dxe4 {[%clk 0:02:21]} 12. Nxe4 {[%clk 0:02:27]}  Nxe4 {[%clk 0:02:21]} 13. Rxe4 {[%clk 0:02:28]}  Bf5 {[%clk 0:02:21]} 14. Re1 {[%clk 0:02:26]}  Qc7 {[%clk 0:02:10]} 15. Qe2 {[%clk 0:02:03]}  Rfe8 {[%clk 0:02:05]} 16. Ne5 {[%clk 0:02:02]}  Nxe5 {[%clk 0:01:42]} 17. dxe5 {[%clk 0:02:01]}  Bc5 {[%clk 0:01:42]} 18. Be4 {[%clk 0:02:00]}  Bxe4 {[%clk 0:01:33]} 19. Qxe4 {[%clk 0:01:59]}  Qb6 {[%clk 0:01:33]} 20. Qe2 {[%clk 0:02:00]}  Rad8 {[%clk 0:01:31]} 21. Red1 {[%clk 0:02:00]}  Rxd1+ {[%clk 0:01:29]} 22. Rxd1 {[%clk 0:01:59]}  Rd8 {[%clk 0:01:28]} 23. Rxd8+ {[%clk 0:01:57]}  Qxd8 {[%clk 0:01:27]} 24. Qd3 {[%clk 0:01:43]}  Qxd3 {[%clk 0:01:21]} 25. cxd3 {[%clk 0:01:42]}  Bb4 {[%clk 0:01:13]} 26. Kf1 {[%clk 0:01:42]}  g5 {[%clk 0:01:11]} 27. Ke2 {[%clk 0:01:39]}  Kf8 {[%clk 0:01:08]} 28. Bc1 {[%clk 0:01:38]}  Ke7 {[%clk 0:00:56]} 29. Bd2 {[%clk 0:01:29]}  Bxd2 {[%clk 0:00:52]} 30. Kxd2 {[%clk 0:01:30]}  b5 {[%clk 0:00:51]} 31. Kc3 {[%clk 0:01:26]}  Kd7 {[%clk 0:00:47]} 32. Kd4 {[%clk 0:01:25]}  g4 {[%clk 0:00:20]} 33. Ke4 {[%clk 0:00:45]}  bxa4 {[%clk 0:00:19]} 34. bxa4 {[%clk 0:00:43]}  c5 {[%clk 0:00:20]} 35. f3 {[%clk 0:00:23]}  gxf3 {[%clk 0:00:18]} 36. Kxf3 {[%clk 0:00:24]}  Kc6 {[%clk 0:00:17]} 37. Ke4 {[%clk 0:00:22]}  c4 {[%clk 0:00:06]} 38. dxc4 {[%clk 0:00:21]}  Kc5 {[%clk 0:00:05]} 39. Kd3 {[%clk 0:00:22]}  Kb4 {[%clk 0:00:06]} 40. g4 {[%clk 0:00:19]}  Kxa4 {[%clk 0:00:00]} 41. Kc3 {[%clk 0:00:20]} 1-0


[Site "https://www.chess.com"]

[Event "Titled Tuesday Blitz October 31 Late 2023"]
[White "Florianovitz, Derlei Alex"]
[Black "Ezat, Mohamed"]
[WhiteFideId "2114178"]
[BlackFideId "10600906"]
[WhiteElo "2289"]
[BlackElo "2590"]
[Result "0-1"]
[Round "8"]
[TimeControl "180+1"]
[Date "2023.10.31"]
[WhiteClock "0:00:07"]
[BlackClock "0:00:18"]
[Board "57"]

1. e4 {[%clk 0:03:00]}  e5 {[%clk 0:02:52]} 2. Nf3 {[%clk 0:03:00]}  Nc6 {[%clk 0:02:48]} 3. Bb5 {[%clk 0:03:01]}  Nge7 {[%clk 0:02:42]} 4. O-O {[%clk 0:02:59]}  a6 {[%clk 0:02:41]} 5. Ba4 {[%clk 0:02:59]}  g6 {[%clk 0:02:41]} 6. c4 {[%clk 0:02:54]}  Bg7 {[%clk 0:02:39]} 7. Nc3 {[%clk 0:02:53]}  O-O {[%clk 0:02:34]} 8. d3 {[%clk 0:02:53]}  h6 {[%clk 0:02:33]} 9. h3 {[%clk 0:02:50]}  d6 {[%clk 0:02:30]} 10. a3 {[%clk 0:02:48]}  f5 {[%clk 0:02:27]} 11. Bc2 {[%clk 0:02:46]}  f4 {[%clk 0:02:27]} 12. b4 {[%clk 0:02:43]}  g5 {[%clk 0:02:26]} 13. Nh2 {[%clk 0:02:41]}  Nd4 {[%clk 0:02:23]} 14. Ne2 {[%clk 0:02:31]}  f3 {[%clk 0:01:54]} 15. Nxd4 {[%clk 0:02:26]}  fxg2 {[%clk 0:01:52]} 16. Kxg2 {[%clk 0:02:27]}  exd4 {[%clk 0:01:51]} 17. f4 {[%clk 0:02:24]}  Ng6 {[%clk 0:01:42]} 18. f5 {[%clk 0:02:18]}  Ne5 {[%clk 0:01:29]} 19. Qh5 {[%clk 0:02:04]}  Bd7 {[%clk 0:01:27]} 20. Ng4 {[%clk 0:01:51]}  Nxg4 {[%clk 0:01:17]} 21. hxg4 {[%clk 0:01:49]}  Qf6 {[%clk 0:01:14]} 22. Bd2 {[%clk 0:01:40]}  Rae8 {[%clk 0:01:13]} 23. Bb3 {[%clk 0:01:18]}  Kh8 {[%clk 0:01:11]} 24. Rh1 {[%clk 0:01:14]}  Bc6 {[%clk 0:01:04]} 25. Bxg5 {[%clk 0:01:09]}  Rxe4 {[%clk 0:01:04]} 26. dxe4 {[%clk 0:00:59]}  Bxe4+ {[%clk 0:01:04]} 27. Kf2 {[%clk 0:01:00]}  Qe5 {[%clk 0:00:56]} 28. Bxh6 {[%clk 0:00:59]}  Kg8 {[%clk 0:00:45]} 29. Bxg7 {[%clk 0:00:56]}  Qf4+ {[%clk 0:00:45]} 30. Ke2 {[%clk 0:00:46]}  Qf3+ {[%clk 0:00:39]} 31. Ke1 {[%clk 0:00:29]}  Qc3+ {[%clk 0:00:36]} 32. Kf2 {[%clk 0:00:28]}  Qd2+ {[%clk 0:00:33]} 33. Kg3 {[%clk 0:00:25]}  Qe3+ {[%clk 0:00:33]} 34. Kh4 {[%clk 0:00:24]}  Qf2+ {[%clk 0:00:33]} 35. Kg5 {[%clk 0:00:23]}  Qe3+ {[%clk 0:00:33]} 36. Kg6 {[%clk 0:00:23]}  Bxf5+ {[%clk 0:00:33]} 37. gxf5 {[%clk 0:00:20]}  Qe8+ {[%clk 0:00:32]} 38. Kg5 {[%clk 0:00:20]}  Qe3+ {[%clk 0:00:31]} 39. Kg4 {[%clk 0:00:14]}  Qe4+ {[%clk 0:00:25]} 40. Kg3 {[%clk 0:00:12]}  Qe3+ {[%clk 0:00:25]} 41. Qf3 {[%clk 0:00:08]}  Qg5+ {[%clk 0:00:25]} 42. Kf2 {[%clk 0:00:06]}  Rxf5 {[%clk 0:00:25]} 43. Qxf5 {[%clk 0:00:02]}  Qxf5+ {[%clk 0:00:24]} 44. Ke2 {[%clk 0:00:02]}  Qe4+ {[%clk 0:00:22]} 45. Kd2 {[%clk 0:00:02]}  Qe3+ {[%clk 0:00:23]} 46. Kc2 {[%clk 0:00:02]}  Qc3+ {[%clk 0:00:23]} 47. Kd1 {[%clk 0:00:02]}  Qxa1+ {[%clk 0:00:23]} 48. Kd2 {[%clk 0:00:03]}  Qc3+ {[%clk 0:00:23]} 49. Ke2 {[%clk 0:00:03]}  Qxb3 {[%clk 0:00:19]} 50. Rg1 {[%clk 0:00:03]}  Qe3+ {[%clk 0:00:18]} 51. Kf1 {[%clk 0:00:03]}  Qxg1+ {[%clk 0:00:17]} 52. Kxg1 {[%clk 0:00:03]}  Kxg7 {[%clk 0:00:18]} 53. Kf1 {[%clk 0:00:04]}  c5 {[%clk 0:00:18]} 54. Ke2 {[%clk 0:00:05]}  Kf6 {[%clk 0:00:17]} 55. Kd3 {[%clk 0:00:06]}  Ke5 {[%clk 0:00:18]} 56. bxc5 {[%clk 0:00:06]}  dxc5 {[%clk 0:00:17]} 57. a4 {[%clk 0:00:07]}  b6 {[%clk 0:00:18]} 58. a5 {[%clk 0:00:08]}  bxa5 {[%clk 0:00:18]} 59. Ke2 {[%clk 0:00:07]}  a4 {[%clk 0:00:18]} 0-1


[Site "https://www.chess.com"]

[Event "Titled Tuesday Blitz October 31 Late 2023"]
[White "Kashefi, Amir Hosein"]
[Black "Curtis, John"]
[WhiteFideId "12557935"]
[BlackFideId "3200256"]
[WhiteElo "2589"]
[BlackElo "2192"]
[Result "1-0"]
[Round "8"]
[TimeControl "180+1"]
[Date "2023.10.31"]
[WhiteClock "0:01:08"]
[BlackClock "0:00:00"]
[Board "58"]

1. d4 {[%clk 0:02:56]}  g6 {[%clk 0:02:59]} 2. Nf3 {[%clk 0:02:56]}  Bg7 {[%clk 0:03:00]} 3. g3 {[%clk 0:02:56]}  c5 {[%clk 0:03:00]} 4. Bg2 {[%clk 0:02:57]}  cxd4 {[%clk 0:02:59]} 5. Nxd4 {[%clk 0:02:58]}  Nc6 {[%clk 0:02:59]} 6. Nf3 {[%clk 0:02:51]}  d5 {[%clk 0:02:58]} 7. O-O {[%clk 0:02:52]}  Nf6 {[%clk 0:02:57]} 8. c4 {[%clk 0:02:48]}  O-O {[%clk 0:02:54]} 9. Na3 {[%clk 0:02:48]}  Be6 {[%clk 0:02:50]} 10. Ng5 {[%clk 0:02:45]}  dxc4 {[%clk 0:02:35]} 11. Nxe6 {[%clk 0:02:44]}  fxe6 {[%clk 0:02:33]} 12. Nxc4 {[%clk 0:02:43]}  e5 {[%clk 0:02:20]} 13. b3 {[%clk 0:02:38]}  e4 {[%clk 0:02:18]} 14. Bb2 {[%clk 0:02:37]}  Qxd1 {[%clk 0:01:57]} 15. Raxd1 {[%clk 0:02:35]}  Rad8 {[%clk 0:01:43]} 16. Bh3 {[%clk 0:02:32]}  Nh5 {[%clk 0:01:24]} 17. Be6+ {[%clk 0:02:26]}  Kh8 {[%clk 0:01:24]} 18. Ba3 {[%clk 0:02:22]}  b5 {[%clk 0:01:18]} 19. Ne3 {[%clk 0:02:07]}  b4 {[%clk 0:01:15]} 20. Bc1 {[%clk 0:02:07]}  Nd4 {[%clk 0:01:15]} 21. Bc4 {[%clk 0:02:06]}  e5 {[%clk 0:01:09]} 22. Nd5 {[%clk 0:02:04]}  Nf6 {[%clk 0:01:05]} 23. Nxb4 {[%clk 0:02:04]}  a5 {[%clk 0:00:57]} 24. Na6 {[%clk 0:02:04]}  Nd5 {[%clk 0:00:51]} 25. Ba3 {[%clk 0:02:02]}  Rg8 {[%clk 0:00:42]} 26. e3 {[%clk 0:02:02]}  Nf3+ {[%clk 0:00:40]} 27. Kg2 {[%clk 0:02:02]}  Nc3 {[%clk 0:00:38]} 28. Rc1 {[%clk 0:01:56]}  Nxa2 {[%clk 0:00:34]} 29. Ra1 {[%clk 0:01:53]}  Nb4 {[%clk 0:00:28]} 30. Bxb4 {[%clk 0:01:52]}  axb4 {[%clk 0:00:29]} 31. Bxg8 {[%clk 0:01:53]}  Kxg8 {[%clk 0:00:27]} 32. Nxb4 {[%clk 0:01:52]}  Nd2 {[%clk 0:00:27]} 33. Rfd1 {[%clk 0:01:51]}  Bf8 {[%clk 0:00:27]} 34. Nc6 {[%clk 0:01:51]}  Rd5 {[%clk 0:00:21]} 35. Ra8 {[%clk 0:01:50]}  Kg7 {[%clk 0:00:20]} 36. Rda1 {[%clk 0:01:47]}  Bc5 {[%clk 0:00:17]} 37. b4 {[%clk 0:01:47]}  Bb6 {[%clk 0:00:15]} 38. R1a6 {[%clk 0:01:47]}  Nc4 {[%clk 0:00:15]} 39. Rc8 {[%clk 0:01:44]}  Rd2 {[%clk 0:00:15]} 40. Kf1 {[%clk 0:01:38]}  Bxe3 {[%clk 0:00:14]} 41. fxe3 {[%clk 0:01:28]}  Nxe3+ {[%clk 0:00:14]} 42. Ke1 {[%clk 0:01:27]}  Rc2 {[%clk 0:00:14]} 43. Ra3 {[%clk 0:01:18]}  Nd5 {[%clk 0:00:11]} 44. Ne7 {[%clk 0:01:16]}  Nxb4 {[%clk 0:00:00]} 45. Ra7 {[%clk 0:01:08]} 1-0


[Site "https://www.chess.com"]